Cogmind - Beta 15 @@@ ROGUE MODE // 2025.06.24 @ 21:20:08 Player: btrs Result: Destroyed by LW-TXW(R) with Subdweller Beam Cannon Performance ------------- Evolutions (0) 0 Regions Visited (2) 400 Robots Destroyed (28) 140 Value Destroyed (610) 610 Prototype IDs (4) 80 Alien Tech Used (0) 0 Bonus (0) 0 TOTAL SCORE: 1230 Bonus ------- None Cogmind --------- Core Integrity 0/250 Matter 300/300 Energy 100/100 System Corruption 1% Temperature Cool (9) Movement Core (700) Ox13 Location -10/Subcaves Parts ------- > --- POWER (1) -------- (None) > --- PROPULSION (2) --- (None) > --- UTILITY (2) ------ High-capacity Storage Unit Signal Interpreter > --- WEAPON (2) ------- (None) > --- INVENTORY (20) --- Ion Engine Ion Engine Ion Engine Aluminum Leg Aluminum Leg Flight Unit Heat Sink Small Storage Unit Large Storage Unit Sensor Array Sensor Array Mining Claw Peak State ------------ > --- POWER ------------ Light Nuclear Core > --- PROPULSION ------- Aluminum Leg Aluminum Leg > --- UTILITY ---------- High-capacity Storage Unit Signal Interpreter > --- WEAPON ----------- Particle Gun Light Assault Rifle > --- INVENTORY -------- Ion Engine Ion Engine Ion Engine Aluminum Leg Aluminum Leg Flight Unit Heat Sink Small Storage Unit Large Storage Unit Sensor Array Sensor Array Mining Claw [Rating: 11] Favorites ----------- Power Ion Engine Engine Ion Engine Power Core Light Nuclear Core Propulsion Light Treads Treads Light Treads Leg Aluminum Leg Utility High-capacity Storage Unit Device Heat Sink Storage High-capacity Storage Unit Processor Signal Interpreter Weapon Light Assault Rifle Energy Gun Particle Gun Ballistic Gun Light Assault Rifle Slashing Weapon Mining Claw Build | -11 -10 -10 ------- Run | Yrd Mat Sub Slots Evolved . | . . . Power . | . . . Propulsion . | . . . Utility . | . . . Weapon . | . . . Parts Attached 26 | 7 17 2 Power 4 | 1 3 . Engine 3 | 1 2 . Core 1 | . 1 . Reactor . | . . . Propulsion 6 | 2 4 . Treads 2 | 2 . . Leg 4 | . 4 . Wheel . | . . . Hover . | . . . Flight . | . . . Utility 7 | 2 5 . Device 3 | 1 2 . Storage 3 | 1 2 . Processor 1 | . 1 . Hackware . | . . . Protection . | . . . Artifact . | . . . Weapon 9 | 2 5 2 Energy Gun 5 | . 3 2 Energy Cannon . | . . . Ballistic Gun 3 | 2 1 . Ballistic Cannon . | . . . Launcher . | . . . Special Weapon . | . . . Impact Weapon . | . . . Slashing Weapon 1 | . 1 . Piercing Weapon . | . . . Special Melee Weapon . | . . . Unidentified Prototypes . | . . . Corrupted Parts 1 | . 1 . System Corruption 1 | . 1 . Parts Lost 11 | . 4 7 Power 1 | . . 1 Propulsion 3 | . 1 2 Utility . | . . . Weapon 7 | . 3 4 Highest Loss Streak 5 | . 1 5 To Critical Strikes . | . . . Average Backups 8 | . 7 13 Power 2 | . 1 3 Propulsion 1 | . . 3 Utility 3 | . 3 5 Weapon 1 | . 1 2 Tool/Special . | . . . Unused Backups 3 | . . 3 Power 1 | . . 1 Propulsion 1 | . . 1 Utility 1 | . . 1 Weapon . | . . . Tool/Special . | . . . Average Slot Usage (%) 97 | . 97 100 Engine 8 | . 11 . Core 4 | . 2 14 Treads 18 | . 22 . Leg 8 | . 3 28 Device 5 | . 6 . Storage 14 | . 14 14 Processor 8 | . 7 14 Energy Gun 8 | . 6 17 Ballistic Gun 16 | . 17 10 Slashing Weapon 2 | . 3 . Peak Build Rating 11 | 9 11 11 Average Rating 8 | 5 7 10 On Entrance 6 | . 9 10 Naked Turns . | . . . Heaviest Build 50 | 13 50 49 Greatest Support 40 | 40 40 20 Greatest Overweight (x) 16 | 3 16 2 Average Overweight (x) 1 | . . 2 Largest Inventory Capacity 20 | 8 20 20 Average Capacity 18 | 7 18 20 Most Carried 15 | 1 15 14 Average Carried 8 | . 7 13 Final Capacity 20 | 8 20 20 Final Carried 15 | 1 15 12 Class Distribution -------------------- 74% | Mutant 25% | Scavenger-Mutant Dominant Class ---------------- Mutant | -10/Materials Scavenger-Mutant | -10/Subcaves Resources | -11 -10 -10 ----------- Run | Yrd Mat Sub Matter Collected 743 | 186 518 39 Remotely . | . . . Salvage Created 840 | 84 733 23 Parts 55 | 3 50 2 Haulers Intercepted . | . . . Recyclers Shooed . | . . . Parts Field Recycled . | . . . Retrieved Matter . | . . . Parts Self-Destructed 12 | . . 12 Prevented . | . . . Kills | -11 -10 -10 ------- Run | Yrd Mat Sub Combat Hostiles Destroyed 22 | . 20 2 Guns 22 | . 20 2 Classes Destroyed 6 | 2 4 . Worker 3 | . 3 . Builder 1 | . 1 . Tunneler 1 | 1 . . Recycler 1 | 1 . . Swarmer 8 | . 6 2 Grunt 14 | . 14 . Best Kill Streak 5 | 1 5 2 Combat Bots Only 3 | . 3 2 Max Kills in Single Turn 1 | 1 1 1 Gunslinging . | . . . Exploded . | . . . Melee . | . . . Uniques/NPCs Destroyed . | . . . Combat | -11 -10 -10 -------- Run | Yrd Mat Sub Hostile Shots Fired 185 | . 145 40 Missed 64 | . 53 11 Hits 121 | . 92 29 Projectile 121 | . 92 29 Damage Taken 1390 | . 952 438 Core 254 | . 159 95 Absorbed by Shields . | . . . Core Remaining (%) 100 | 100 . . Volleys Fired 122 | 13 97 12 Largest 2 | 2 2 2 Hottest 90 | 40 90 90 Shots Fired 227 | 26 178 23 Gun 227 | 26 178 23 Cannon . | . . . Launcher . | . . . Special . | . . . Kinetic 143 | 26 112 5 Thermal 61 | . 43 18 Explosive . | . . . Electromagnetic 23 | . 23 . Robot Hit Streak 10 | 8 10 5 Robot Miss Streak 5 | 2 4 5 Penetration Max . | . . . Secondary Targets 2 | . 2 . Max Gunslinging Chain 1 | . 1 . Shots Hit Robots 147 | 19 117 11 Core Hits 51 | 4 43 4 Critical Kills . | . . . Critical Parts Destroyed . | . . . Critical Strikes 3 | . 2 1 Burn 2 | . 1 1 Corrupt 1 | . 1 . Melee Attacks 8 | . 8 . Impact . | . . . Slashing 8 | . 8 . Piercing . | . . . Sneak Attacks 5 | . 5 . Combat Hostiles . | . . . Follow-up Attacks . | . . . Damage Inflicted 1754 | 158 1467 129 Guns 1514 | 158 1227 129 Cannons . | . . . Explosions . | . . . Melee 240 | . 240 . Ramming . | . . . Kinetic 816 | 158 649 9 Thermal 487 | . 367 120 Explosive . | . . . Electromagnetic 211 | . 211 . Impact . | . . . Slashing 240 | . 240 . Piercing . | . . . Highest Corruption 1 | . 1 1 Average Corruption 1 | . 1 1 Corruption Purged . | . . . Corruption Blocked . | . . . Effects 17 | . 12 5 Message Errors 5 | . 3 2 Matter Fused 3 | . 2 1 Heat Flow Errors 3 | . 3 . Energy Discharges 4 | . 3 1 Data Loss (minor) 1 | . . 1 Alerts 1 | . 1 . Overload Shots . | . . . Overflow Damage 6 | . 6 . Projectiles . | . . . Explosions . | . . . Melee 6 | . 6 . Knockbacks . | . . . Impact . | . . . Kinetic . | . . . Secondary . | . . . Self-Inflicted Damage . | . . . Shots . | . . . Rammed 1 | . 1 . Targets Rammed 1 | . 1 . Kicked . | . . . Crushed . | . . . Highest Temperature 254 | . 254 16 Average Temperature 69 | . 74 7 Received Heat Transfer 474 | . 375 99 Siege Activations . | . . . Martial Activations . | . . . Shielding Activations . | . . . Robots Disrupted . | . . . Combat Hostiles . | . . . Robots Corrupted . | . . . Combat Hostiles . | . . . Parts Fried . | . . . Impact Corruptions . | . . . Robots Melted . | . . . Combat Hostiles . | . . . Parts Melted 1 | . 1 . Heat Transferred 1519 | . 1147 372 Parts Sabotaged . | . . . Parts Stolen . | . . . Parts Stripped . | . . . Power Chain Reactions . | . . . Alert | -11 -10 -10 ------- Run | Yrd Mat Sub Maximum Alert Level . | . . . Low Security (%) 100 | 100 100 . Level 1 . | . . . Level 2 . | . . . Level 3 . | . . . Level 4 . | . . . Level 5 . | . . . High Security . | . . . Max Security . | . . . Peak Influence 129 | 5 129 . Initial . | . . . Average 41 | 1 43 . Influence Increases 609 | 10 559 40 Destroy 0b10 Robot/C 440 | . 400 40 Destroy 0b10 Robot/NC 30 | 10 20 . Destroy Leader 70 | . 70 . Successful Hack 9 | . 9 . Disable Machine 30 | . 30 . Lose Combat Pursuer 30 | . 30 . Influence Decreases 609 | 10 465 134 Entered New Map 46 | . . 46 Time Decay 513 | 10 425 78 Lost Part 50 | . 40 10 Squads Dispatched 4 | . 4 . Investigation 3 | . 3 . Extermination . | . . . Reinforcement 1 | . 1 . Assault . | . . . Garrison . | . . . Intercept . | . . . Searches Triggered . | . . . Construction Impeded . | . . . Haulers Reinforced . | . . . Active Scanning Responses . | . . . Cargo Convoy Interrupts . | . . . Stealth | -11 -10 -10 --------- Run | Yrd Mat Sub Distress Signals 1 | . 1 . Communications Jammed . | . . . Distress Signals . | . . . Times Spotted 44 | . 39 5 Peak Tracking Total 5 | . 5 3 Tactical Retreats 2 | . 2 . Traps | -11 -10 -10 ------- Run | Yrd Mat Sub Traps Triggered 2 | . 2 . Indirectly . | . . . Trap Hack Attempts . | . . . Triggered . | . . . Disarmed . | . . . Reprogrammed . | . . . Reused . | . . . Traps Extracted . | . . . Installed . | . . . Triggered . | . . . Machines | -11 -10 -10 ---------- Run | Yrd Mat Sub Machines Disabled 2 | . 2 . Max in Single Turn 1 | . 1 . Machines Repaired . | . . . Machines Dismantled . | . . . Machines Sabotaged . | . . . Overloaded Fab Kills . | . . . Hacking | -11 -10 -10 --------- Run | Yrd Mat Sub Machines Accessed 6 | . 4 2 Terminals 4 | . 4 . Fabricators . | . . . Repair Stations . | . . . Recycling Units . | . . . Scanalyzers . | . . . Garrison Access . | . . . Total Hacks 21 | . 18 3 Successful 8 | . 5 3 Failed 13 | . 13 . Catastrophic 2 | . 2 . Database Lockouts . | . . . Manual 1 | . 1 . Terminals 18 | . 18 . Fabricators . | . . . Repair Stations . | . . . Recycling Units . | . . . Scanalyzers . | . . . Garrison Access . | . . . Terminal Hacks 8 | . 5 3 Record 1 | . . 1 Prototype ID Bank 3 | . 3 . Open Door 1 | . . 1 Alert Level 1 | . 1 . Locate Traps 1 | . 1 . Release Object 1 | . . 1 Fabricator Hacks . | . . . Repair Station Hacks . | . . . Recycling Unit Hacks . | . . . Scanalyzer . | . . . Garrison Access Hacks . | . . . Unauthorized Hacks . | . . . Terminals . | . . . Fabricators . | . . . Repair Stations . | . . . Recycling Units . | . . . Scanalyzers . | . . . Garrison Access . | . . . Data Cores Recovered . | . . . Used . | . . . Hacking Detections 4 | . 4 . Full Trace Events 4 | . 4 . Feedback Events . | . . . Feedback Blocked . | . . . Robot Schematics Acquired . | . . . Robots Built . | . . . Authchips . | . . . Time . | . . . Total Robot Build Rating . | . . . Part Schematics Acquired . | . . . Parts Built . | . . . Authchips . | . . . Time . | . . . Total Part Build Rating . | . . . Parts Repaired . | . . . Time . | . . . Parts Recycled . | . . . Recycled Matter . | . . . Retrieved Matter . | . . . Retrieved Components . | . . . Parts Scanalyzed . | . . . Part Schematics Acquired . | . . . Parts Damaged . | . . . Bothacking | -11 -10 -10 ------------ Run | Yrd Mat Sub Used RIF Installer . | . . . Robots Hacked . | . . . Non-combat . | . . . Combat . | . . . Robot Hacks Applied . | . . . Relay Couplers Released . | . . . Fabnet Peak Effective % . | . . . Robots Rewired . | . . . Allies Hacked . | . . . Hacks Repelled . | . . . Allies | -11 -10 -10 -------- Run | Yrd Mat Sub Total Allies . | . . . Largest Group . | . . . Highest-Rated Group . | . . . Highest-Rated Ally . | . . . Total Orders . | . . . Ally Attacks . | . . . Total Damage . | . . . Kills . | . . . Allies Corrupted . | . . . Allies Melted . | . . . Intel | -11 -10 -10 ------- Run | Yrd Mat Sub Active Infowar (turns) 311 | 20 291 . Sensors 18 | . 18 . Terrain 293 | 20 273 . Robot Analysis Total . | . . . Derelict Logs Recovered . | . . . Drone Launches . | . . . Drone Recoveries . | . . . Exploration | -11 -10 -10 ------------- Run | Yrd Mat Sub Turns Passed 2697 | 141 2064 492 Spaces Moved 968 | 62 737 169 Core 15 | 13 2 . Treads 674 | 49 625 . Legs 279 | . 110 169 Wheels . | . . . Hover . | . . . Flight . | . . . Fastest Speed 50 | 50 160 260 Average Speed 227 | 155 226 260 Slowest Speed 850 | 200 850 260 Overloaded Moves . | . . . Propulsion Burnouts . | . . . Robots Hopped . | . . . Potential Cave-ins . | . . . Cave-ins Triggered . | . . . Exploration Rate (%) 34 | 4 86 13 Regions Visited 2 Branch Regions 1 Pre-discovered Areas . | . . . Known Exits Taken 1 | . 1 . Unknown Exits Taken 1 | 1 . . Scrap Searched . | . . . Spaces Dug . | . . . Terrain Destroyed . | . . . Melee . | . . . Projectile . | . . . AOE . | . . . Terrain Rammed . | . . . Walls Destroyed . | . . . Machines Disabled . | . . . Actions | -11 -10 -10 --------- Run | Yrd Mat Sub Total 1222 | 82 941 199 Wait 79 | . 65 14 Move 966 | 61 736 169 Hop . | . . . Pick Up 11 | 1 10 . Fast Attach 13 | 7 6 . Attach 6 | . 3 3 Detach . | . . . Swap 15 | . 15 . Drop . | . . . Fire 122 | 13 97 12 Melee 8 | . 8 . Ram . | . . . Kick . | . . . Crush 1 | . 1 . Escape Stasis . | . . . Rewire . | . . . Trap . | . . . Miscellaneous 1 | . . 1 Route ------- -11/Scrapyard -10/Materials (discovered 5 exits: [*Mat x2] / *Min x2 / *Sub) -10/Subcaves History --------- Turn | Location | Event 10 | -11/Scrapyard | Discovered new exit (range 16) 142 | -11/Scrapyard | Entered Materials 308 | -10/Materials | Build established: Mutant 342 | -10/Materials | Discovered new exit (range 16) 706 | -10/Materials | Discovered new exit (range 11) 1109 | -10/Materials | Discovered new exit (range 4) 1142 | -10/Materials | Identified exit to Mines 1631 | -10/Materials | Discovered exit to Mines (range 11) 1845 | -10/Materials | Core integrity fell below 50% 2166 | -10/Materials | Discovered new exit (range 10) 2202 | -10/Materials | Identified exit to Subcaves 2206 | -10/Materials | Entered Subcaves 2207 | -10/Subcaves | Approached by a straggling Scientist 2414 | -10/Subcaves | Released subatomizers from SUBCON Basin 2512 | -10/Subcaves | Build established: Scavenger-Mutant 2697 | -10/Subcaves | Core integrity fell below 20% 2698 | -10/Subcaves | Destroyed by LW-TXW(R) with Subdweller Beam Cannon Last Messages --------------- 02550_ Lgt. Assault Rifle destroyed. 02551_ Lgt. Assault Rifle fries itself beyond repair. 02555_ Subatomizers dissect the Flight Unit. 02556_ S-10 Pest destroyed. 02561_ Flight Unit fries itself beyond repair. 02561_ Lgt. Assault Rifle fries itself beyond repair. 02567_ Acquired 11 matter. 02569_ Acquired 12 matter. 02572_ Acquired 16 matter. 6I-ZMG(c): "I think it's somewhere east of here" 02669_ System corrupted: Energy discharge (-54). 02687_ SI-6EJ(R) suffers critical hit (Burn). 02692_ Aluminum Leg destroyed. 02694_ Lgt. Nuclear Core destroyed. 02694_ Sml. Laser destroyed. 02695_ Aluminum Leg destroyed. 02697_ Med. Laser destroyed. Map ----- +----------------------------------------------------+ | ?????????????????????????????????????????????????? | | ?????????????????????????????????????????????????? | | ?????????????????????????????????????????????????? | | ?????????????????????????????????????????????????? | | ?????????????????????????????????????????????????? | | ?????????????????????????????????????????????????? | | ?????????????????????????????????????????????????? | | ?????????????????????????????????????????????????? | | ?????????????????????????????????????????????????? | | ?????????????????????????????????????????????????? | | ?????????????????????????????????????????????????? | | ?????????????????????????????????????????????????? | | ?????????????????????????????????????????????????? | | ?????????????????????????????????????????????????? | | ?????????????????????????????????????????????????? | | ?????????????????????????????????????????????????? | | ?????????????????????????????????????????????????? | | ?????????????????????????????????????????????????? | | ?????????????????????????????????????????????????? | | ????????????????#?####???????????????????????????? | | ????????????????? # ???????????????????????????? | | ?????????????????? #??????????????????????????? | | ??????????????????## ??????##??????????????????? | | ????????????????###< <###?## #??????????????????? | | ???????????????## R ### #??????????????????? | | ????????????# R @ #??????????????????? | | ???????????# ###### #??????????????????? | | ???????????# ? ?????# #??????????????????? | | ???????????##?????? ???## #??????????????????? | | ???????????????????? ???# #??????????????????? | | ????????????????????# ???# #??????????????????? | | ????????????????????# #?## #??????????????????? | | ????????????????????# ## ##??????????????????? | | ???????????????????## ##???????????????????? | | ???????????????????# ##????????????????????? | | ???????????????????# ##?????????????????????? | | ???????????????????# #??????????????????????? | | ???????????????????# #??????????????????????? | | ???????????????????# #?###??????????????????? | | ??????????????????## ### #??????????????????? | | ??????????????????# ## #??????????????????? | | ??????????????????# #??????????????????? | | ??????????????????## #??????????????????? | | ?#####?????????????## #??????????????????? | | ## ####?#########?## ##??????????????????? | | ### ## ### ###???????????????????? | | ##????????????????????? | | # #????????????????????? | | # ## ### # # ### #???????????????????? | | # ######?#########?#### #???????????????????? | +----------------------------------------------------+ Best States ------------- Heat Dissipation 35 Energy Generation 14 Energy Capacity 250 Matter Stores 300 Matter Capacity 300 Sight Range 16 Robot Scan Range 14 Terrain Scan Range 16 Terrain Scan Density 10 Evasion (%) 40 Recoil Reduction 2 Item Schematics ----------------- None Robot Schematics ------------------ None Fabricated ------------ Nothing Repaired ---------- Nothing Alien Tech Used ----------------- None Achievements -------------- None Challenges ------------ None Game ------ Seed WeightSubatomicBank Manual? 0 Play Time 00:19:01 Cumulative 85.7 hours Start 2025.06.24 @ 20:57:17 End 2025.06.24 @ 21:20:08 Sessions 1 Manual Loads 0 Difficulty Rogue Special Mode None Game No. 48 Rogue 42 Adventurer 6 Explorer 0 Win Type - Total 3 Types 3/0/0/0/0/0/0/0/0/0 Lore% 24 Gallery% 41 Achievement% 40 Wizard Run 0 Options --------- Layout 1 ASCII 1 Keyboard 1 Movement Vi Keybinds 0 Fullscreen 1 Font 32/SmallcapsGlow Map View 50x35 Zoom Use 0% Tactical HUD 1 Map Filters NONE Filters NONE Steam 1 RUN: 847bf55f-6eb0-421f-825f-101070109307